Cogmind - Beta 9.4 @@@ ROGUE MODE // 2020.01.19 @ 19:14:55 // AFD2019/Pay2Buy Player: Cookie Result: Self-destructed Performance ------------- Evolutions (1) 500 Regions Visited (3) 600 Robots Destroyed (1) 5 Value Destroyed (105) 105 Prototype IDs (0) 0 Alien Tech Used (0) 0 Bonus (200) 200 TOTAL SCORE: 1410 Bonus ------- Pacifist 200 Cogmind --------- Core Integrity 255/400 Matter 110/300 Energy 100/100 System Corruption 0% Temperature Cool (0) Movement Flying (40) Location -9/Materials Parts ------- > --- POWER (1) -------- (None) > --- PROPULSION (3) --- VTOL Module > --- UTILITY (3) ------ Improved Signal Interpreter > --- WEAPON (2) ------- (None) > --- INVENTORY (10) --- Improved Ion Engine Peak State ------------ > --- POWER ------------ Ion Engine > --- PROPULSION ------- VTOL Module VTOL Module > --- UTILITY ---------- Sensor Array Improved Signal Interpreter > --- WEAPON ----------- Mace > --- INVENTORY -------- (None) [Rating: 10] Favorites ----------- Power Ion Engine Engine Ion Engine Propulsion VTOL Module Flight Unit VTOL Module Utility Improved Signal Interpreter Device Sensor Array Processor Improved Signal Interpreter Weapon Mace Impact Weapon Mace Build | -11 -10 -10 -9 ------- Run | Scr Mat Min Mat Slots Evolved 2 | . . . 2 Power . | . . . . Propulsion 1 | . . . 1 Utility 1 | . . . 1 Weapon . | . . . . Parts Attached 1 | . . 1 . Power 1 | . . 1 . Engine 1 | . . 1 . Core . | . . . . Reactor . | . . . . Propulsion . | . . . . Treads . | . . . . Leg . | . . . . Wheel . | . . . . Hover . | . . . . Flight . | . . . . Utility . | . . . . Device . | . . . . Storage . | . . . . Processor . | . . . . Hackware . | . . . . Protection . | . . . . Artifact . | . . . . Weapon . | . . . . Energy Gun . | . . . . Energy Cannon . | . . . . Ballistic Gun . | . . . . Ballistic Cannon . | . . . . Launcher . | . . . . Special Weapon . | . . . . Impact Weapon . | . . . . Slashing Weapon . | . . . . Piercing Weapon . | . . . . Special Melee Weapon . | . . . . Unidentified Prototypes . | . . . . Parts Lost 4 | . . . 4 Power 1 | . . . 1 Propulsion 1 | . . . 1 Utility 1 | . . . 1 Weapon 1 | . . . 1 Highest Loss Streak 4 | . . . 4 Average Slot Usage (%) 78 | . 85 85 59 Engine 12 | . 14 14 8 Flight 26 | . 28 28 20 Device 12 | . 14 14 8 Processor 13 | . 14 14 11 Impact Weapon 13 | . 14 14 11 Naked Turns . | . . . . Heaviest Build 8 | 8 8 8 8 Greatest Support 10 | 10 10 10 10 Greatest Overweight (x) . | . . . . Average Overweight (x) . | . . . . Largest Inventory Capacity 10 | 10 10 10 10 Average Capacity 10 | 10 10 10 10 Most Carried 2 | . . 2 1 Average Carried . | . . 1 1 Final Capacity 10 | 10 10 10 10 Final Carried 1 | . . 1 1 Class Distribution -------------------- 100% | Mutant Dominant Class ---------------- Mutant | -10/Materials Mutant | -10/Mines Mutant | -9/Materials Resources | -11 -10 -10 -9 ----------- Run | Scr Mat Min Mat Matter Collected . | . . . . Remotely . | . . . . Salvage Created 51 | . . . 51 Parts . | . . . . Haulers Intercepted . | . . . . Recyclers Shooed . | . . . . Parts Field Recycled . | . . . . Retrieved Matter . | . . . . Parts Self-Destructed . | . . . . Prevented . | . . . . Kills | -11 -10 -10 -9 ------- Run | Scr Mat Min Mat Combat Hostiles Destroyed 1 | . . . 1 Melee 1 | . . . 1 Classes Destroyed 1 | . . . 1 Sentry 1 | . . . 1 Best Kill Streak 1 | . . . 1 Combat Bots Only 1 | . . . 1 Max Kills in Single Turn 1 | . . . 1 Gunslinging . | . . . . Exploded . | . . . . Melee 1 | . . . 1 Uniques/NPCs Destroyed . | . . . . Combat | -11 -10 -10 -9 -------- Run | Scr Mat Min Mat Damage Taken 349 | . 13 . 336 Core 145 | . . . 145 Absorbed by Shields . | . . . . Core Remaining (%) 100 | 100 . 100 . Volleys Fired . | . . . . Largest . | . . . . Hottest . | . . . . Shots Fired . | . . . . Gun . | . . . . Cannon . | . . . . Launcher . | . . . . Special . | . . . . Kinetic . | . . . . Thermal . | . . . . Explosive . | . . . . Electromagnetic . | . . . . Robot Hit Streak . | . . . . Robot Miss Streak . | . . . . Penetration Max . | . . . . Secondary Targets . | . . . . Shots Hit Robots 16 | . 1 . 15 Core Hits 2 | . . . 2 Critical Hits . | . . . . Critical Kills . | . . . . Critical Parts Destroyed . | . . . . Melee Attacks 17 | . 1 . 16 Impact 17 | . 1 . 16 Slashing . | . . . . Piercing . | . . . . Sneak Attacks . | . . . . Combat Hostiles . | . . . . Follow-up Attacks . | . . . . Damage Inflicted 255 | . 28 . 227 Guns . | . . . . Cannons . | . . . . Explosions . | . . . . Melee 255 | . 28 . 227 Ramming . | . . . . Kinetic . | . . . . Thermal . | . . . . Explosive . | . . . . Electromagnetic . | . . . . Impact 255 | . 28 . 227 Slashing . | . . . . Piercing . | . . . . Highest Corruption 2 | . 2 2 . Average Corruption 2 | . 2 2 . Corruption Purged . | . . . . Overload Shots . | . . . . Overflow Damage . | . . . . Projectiles . | . . . . Explosions . | . . . . Melee . | . . . . Knockbacks . | . . . . Impact . | . . . . Kinetic . | . . . . Secondary . | . . . . Self-Inflicted Damage . | . . . . Shots . | . . . . Rammed . | . . . . Targets Rammed . | . . . . Kicked . | . . . . Crushed . | . . . . Highest Temperature . | . . . . Average Temperature . | . . . . Received Heat Transfer 117 | . 9 . 108 Siege Activations . | . . . . Robots Corrupted . | . . . . Combat Hostiles . | . . . . Parts Fried . | . . . . Impact Corruptions . | . . . . Robots Melted . | . . . . Combat Hostiles . | . . . . Parts Melted . | . . . . Heat Transferred . | . . . . Parts Sabotaged . | . . . . Parts Stolen . | . . . . Parts Stripped . | . . . . Power Chain Reactions . | . . . . Missiles Intercepted . | . . . . Alert | -11 -10 -10 -9 ------- Run | Scr Mat Min Mat Peak Influence 108 | . 108 42 68 Average Influence 40 | . 45 42 32 Maximum Alert Level . | . . . . Low Security (%) 100 | 100 100 100 100 Level 1 . | . . . . Level 2 . | . . . . Level 3 . | . . . . Level 4 . | . . . . Level 5 . | . . . . High Security . | . . . . Max Security . | . . . . Squads Dispatched 3 | . 3 . . Investigation 2 | . 2 . . Extermination . | . . . . Reinforcement 1 | . 1 . . Assault . | . . . . Garrison . | . . . . Intercept . | . . . . Construction Impeded . | . . . . Haulers Reinforced . | . . . . Stealth | -11 -10 -10 -9 --------- Run | Scr Mat Min Mat Distress Signals 1 | . 1 . . Communications Jammed . | . . . . Distress Signals . | . . . . Times Spotted 18 | . 13 3 2 Peak Tracking Total 9 | . 9 3 2 Tactical Retreats 2 | . 1 1 . Traps | -11 -10 -10 -9 ------- Run | Scr Mat Min Mat Traps Triggered 2 | . 2 . . Indirectly . | . . . . Trap Hack Attempts . | . . . . Triggered . | . . . . Disarmed . | . . . . Reprogrammed . | . . . . Reused . | . . . . Traps Extracted . | . . . . Installed . | . . . . Triggered . | . . . . Machines | -11 -10 -10 -9 ---------- Run | Scr Mat Min Mat Machines Disabled . | . . . . Max in Single Turn . | . . . . Machines Sabotaged 1 | . 1 . . Garrisons Compromised . | . . . . Overloaded Fab Kills . | . . . . Fab Network Shutdowns . | . . . . Hacking | -11 -10 -10 -9 --------- Run | Scr Mat Min Mat Machines Accessed 3 | . 2 . 1 Terminals 3 | . 2 . 1 Fabricators . | . . . . Repair Stations . | . . . . Recycling Units . | . . . . Scanalyzers . | . . . . Garrison Access . | . . . . Total Hacks 10 | . 6 . 4 Successful 5 | . 4 . 1 Failed 5 | . 2 . 3 Catastrophic . | . . . . Database Lockouts . | . . . . Manual 5 | . 4 . 1 Terminals 10 | . 6 . 4 Fabricators . | . . . . Repair Stations . | . . . . Recycling Units . | . . . . Scanalyzers . | . . . . Garrison Access . | . . . . Terminal Hacks 4 | . 3 . 1 Branch Access Points 2 | . 1 . 1 Terminal Index 1 | . 1 . . Zone Layout 1 | . 1 . . Fabricator Hacks . | . . . . Repair Station Hacks . | . . . . Recycling Unit Hacks . | . . . . Scanalyzer . | . . . . Garrison Access Hacks . | . . . . Unauthorized Hacks 4 | . 3 . 1 Terminals 1 | . 1 . . Sabotage 1 | . 1 . . Fabricators . | . . . . Repair Stations . | . . . . Recycling Units . | . . . . Scanalyzers . | . . . . Garrison Access . | . . . . Data Cores Recovered . | . . . . Used . | . . . . Hacking Detections 3 | . 2 . 1 Full Trace Events 1 | . . . 1 Feedback Events . | . . . . Feedback Blocked . | . . . . Robot Schematics Acquired . | . . . . Robots Built . | . . . . Matter . | . . . . Time . | . . . . Total Robot Build Rating . | . . . . Part Schematics Acquired . | . . . . Parts Built . | . . . . Matter . | . . . . Time . | . . . . Total Part Build Rating . | . . . . Parts Repaired . | . . . . Time . | . . . . Parts Recycled . | . . . . Recycled Matter . | . . . . Retrieved Matter . | . . . . Retrieved Components . | . . . . Parts Scanalyzed . | . . . . Part Schematics Acquired . | . . . . Parts Damaged . | . . . . Bothacking | -11 -10 -10 -9 ------------ Run | Scr Mat Min Mat Used RIF Installer . | . . . . Robots Hacked . | . . . . Non-combat . | . . . . Combat . | . . . . Robot Hacks Applied . | . . . . Relay Couplers Released . | . . . . Robots Rewired . | . . . . Allies Hacked . | . . . . Hacks Repelled . | . . . . Allies | -11 -10 -10 -9 -------- Run | Scr Mat Min Mat Total Allies . | . . . . Largest Group . | . . . . Highest-Rated Group . | . . . . Highest-Rated Ally . | . . . . Total Orders . | . . . . Ally Attacks . | . . . . Total Damage . | . . . . Kills . | . . . . Allies Corrupted . | . . . . Allies Melted . | . . . . Intel | -11 -10 -10 -9 ------- Run | Scr Mat Min Mat Robot Analysis Total . | . . . . Derelict Logs Recovered . | . . . . Drone Launches . | . . . . Drone Recoveries . | . . . . Exploration | -11 -10 -10 -9 ------------- Run | Scr Mat Min Mat Turns Passed 347 | 7 183 73 84 Spaces Moved 728 | 18 423 194 93 Core . | . . . . Treads . | . . . . Legs . | . . . . Wheels . | . . . . Hover . | . . . . Flight 728 | 18 423 194 93 Fastest Speed 37 | 37 37 37 37 Average Speed 37 | 37 37 37 37 Slowest Speed 37 | 37 37 37 37 Overloaded Moves . | . . . . Propulsion Burnouts . | . . . . Robots Hopped 1 | . . 1 . Cave-ins Triggered . | . . . . Exploration Rate (%) 28 | 3 55 44 10 Regions Visited 3 Branch Regions 1 Pre-discovered Areas . | . . . . Known Exits Taken 3 | 1 1 1 . Unknown Exits Taken . | . . . . Scrap Searched . | . . . . Spaces Dug . | . . . . Terrain Destroyed . | . . . . Melee . | . . . . Projectile . | . . . . AOE . | . . . . Actions | -11 -10 -10 -9 --------- Run | Scr Mat Min Mat Total 776 | 17 447 194 118 Wait 33 | . 24 . 9 Move 723 | 17 422 191 93 Hop 1 | . . 1 . Pick Up . | . . . . Fast Attach . | . . . . Attach 1 | . . 1 . Detach 1 | . . 1 . Swap . | . . . . Drop . | . . . . Fire . | . . . . Melee 17 | . 1 . 16 Ram . | . . . . Kick . | . . . . Crush . | . . . . Escape Stasis . | . . . . Rewire . | . . . . Trap . | . . . . Miscellaneous . | . . . . Route ------- -11/Scrapyard -10/Materials (discovered 3 exits: *Mat x2 / *Min) -10/Mines -9/Materials (discovered 3 exits: Min / *Sto x2) History --------- Turn | Location | Event 3 | -11/Scrapyard | Discovered new exit (range 15) 7 | -11/Scrapyard | Identified exit to Materials 8 | -11/Scrapyard | Entered Materials 64 | -10/Materials | Discovered new exit (range 12) 68 | -10/Materials | Identified exit to Materials 115 | -10/Materials | Identified exit to Mines 179 | -10/Materials | Discovered exit to Materials (range 11) 191 | -10/Materials | Entered Mines 250 | -10/Mines | Discovered exit to Materials (range 16) 264 | -10/Mines | Entered Materials 264 | -9/Materials | Evolved 2 slots: Propulsion x1, Utility x1 275 | -9/Materials | Identified exit to Mines 275 | -9/Materials | Identified exit to Storage 308 | -9/Materials | Build established: Mutant 348 | -9/Materials | Self-destructed Last Messages --------------- 00214_ K-01 Serf collects debris. 00250_ EXIT=FOUND: MATERIALS PARAMETERS=PROPULSION_1,UTILITY_1 LOCATION=MATERIALS GOAL=ESCAPE 00273_ K-01 Serf collects debris. 00275_ Connecting with Terminal... >>Access(Branch) Found 3 branch access points: (91,13) Mines (60,20) Storage (93,46) Storage Map updated. 00276_ K-01 Serf cleans the Terminal. 00282_ K-01 Serf collects debris. 00325_ Y-45 Defender destroyed. 00326_ Sensor Array destroyed. 00329_ Ion Engine destroyed. 00332_ VTOL Module destroyed. 00347_ Mace destroyed. Map ----- +----------------------------------------------------+ | | | | | | | | | | | | | | | | | | | | | | | ?????????????????????????????????????????????????? | | ?????????????????????????????????????????????????? | | ?????????????????????????????????????????????????? | | ?????????????????????????????????????????????????? | | ?????????##################################??????? | | ?????????# +??????? | | ?????????# #??????? | | ?????????# #??????? | | ?????????# +??????? | | ?????????# ############## ########### #??????? | | ?????????# #????????????# #????????????????????? | | ?????????# #?######?????# #????????????????????? | | ?????????# #? #?????# #????????????????????? | | ?????????# # #??#### #????????????????????? | | ?????????# # """ #??#%@ #????????????????????? | | ?????????# + """ #??#Y####????????????????????? | | ?????????# # """ #??# #???????????????????????? | | ?????????# # #??# #???????????????????????? | | ?????????# #?######?? ???????????????????????? | | ??######?# #????????? ???????????????????????? | | ??# # #????????? > ???????????????????????? | | ??# # #????????? ???????????????????????? | | ??# + #???????? ??????????????????????? | | ??# "Y" # #????????##+##??????????????????????? | | ??# """ # #???????????????????????????????????? | | ??# ?# #???????????????????????????????????? | | ??######?# #???????????????????????????????????? | | ?????????# #???????????????????????????????????? | | ?????????# #???????????????????????????????????? | | ?????????# #???????????????????????????????????? | | ?????????# #???#######?????????????????????????? | | ?????????# #?? ??????????????????????????? | | ????????## ##? """ ??????????????????????????? | | ??#+##### # """ ??????????????????????????? | | # """ #?????????????????????????? | | T + #?????????????????????????? | | # """ #?????????????????????????? | | ## #### # """ ??????????????????????????? | | ?# ????### ###? """ ??????????????????????????? | +----------------------------------------------------+ Best States ------------- Heat Dissipation 28 Energy Generation 10 Energy Capacity 250 Matter Stores 105 Matter Capacity 300 Sight Range 16 Robot Scan Range 10 Terrain Scan Density 10 Evasion (%) 62 Item Schematics ----------------- None Robot Schematics ------------------ None Fabricated ------------ Nothing Alien Tech Used ----------------- None Achievements -------------- None Challenges ------------ None Cogshop Purchases (7) ----------------------- VTOL Module (1049) VTOL Module (1049) Ion Engine (599) Mace (629) Sensor Array (599) Imp. Signal Interpreter (699) Imp. Ion Engine (Loot Box) Game ------ Seed ThrusterTerrainTorch Manual? 0 Play Time 00:13:41 Cumulative 41.5 hours Start 2020.01.19 @ 18:13:06 End 2020.01.19 @ 19:14:55 Sessions 1 Manual Loads 0 Difficulty Rogue Special Mode AFD2019/Pay2Buy Game No. 65 Rogue 65 Adventurer 0 Explorer 0 Win Type - Total 1 Types 1/0/0/0/0/0/0 Lore% 31 Gallery% 35 Achievement% 30 Wizard Run 0 Options --------- ASCII 0 Keyboard 0 Movement Mouse Keybinds 0 Fullscreen 1 Font 18/SmallcapsGlow Map View 76x50 Tactical HUD 1 Map Filters NONE Filters NONE Steam 1 RUN: da110e1a-fc61-40ac-8840-6f804f5664ce